bitfinex/quotes_BTCUSD_20250124
["timestamp","ask_amount","ask_price","bid_price","bid_amount"]
[1737724440588,0.10320443,105180.0,105170.0,0.13631105]
[1737724443120,0.10181271,105180.0,105170.0,0.13631105]
[1737724444514,0.00446542,105180.0,105170.0,0.26466177]
[1737724444715,0.00446542,105180.0,105170.0,0.26371105]
[1737724445516,0.00446542,105180.0,105170.0,0.29671105]
[1737724446135,0.00446542,105180.0,105170.0,0.26371105]
[1737724446550,0.10181271,105180.0,105170.0,0.26371105]
[1737724446940,0.00446542,105180.0,105170.0,0.27101964]
[1737724448098,0.00446542,105180.0,105170.0,0.27116164]
[1737724448520,0.00446542,105180.0,105170.0,0.30416164]
[1737724448685,0.00446542,105180.0,105170.0,0.29416164]
[1737724448887,0.00446542,105180.0,105170.0,0.30349944]
[1737724449108,0.00446542,105180.0,105170.0,0.31349944]
[1737724449513,0.00446542,105180.0,105170.0,0.30349944]
[1737724449683,0.00446542,105180.0,105170.0,0.27319085]
[1737724450823,0.00446542,105180.0,105170.0,0.30619085]
[1737724451229,0.00446542,105180.0,105170.0,0.29619085]
[1737724451629,0.00446542,105180.0,105170.0,0.30619085]
[1737724451827,0.00446542,105180.0,105170.0,0.45619085]
[1737724452251,0.00446542,105180.0,105170.0,0.42319085]
[1737724453814,0.00446542,105180.0,105170.0,0.29579085]
[1737724454187,0.10181271,105180.0,105170.0,0.29579085]
[1737724454640,0.10181271,105180.0,105170.0,0.34549085]
[1737724454641,0.00446542,105180.0,105170.0,0.34549085]
[1737724461400,0.18281271,105180.0,105170.0,0.14579085]
[1737724461604,0.00446542,105180.0,105170.0,0.29579085]
[1737724462754,0.00364056,105180.0,105170.0,0.29579085]
[1737724481778,0.00364056,105180.0,105170.0,0.44219085]
[1737724481979,0.00426855,105180.0,105170.0,0.45219085]
[1737724483723,0.00426855,105180.0,105170.0,0.54953814]
[1737724484675,2.1e-07,105190.0,105180.0,0.315612]
[1737724484889,6.2e-07,105190.0,105180.0,0.56845929]
[1737724485094,0.001972,105190.0,105180.0,0.56845929]
[1737724485314,0.9260358,105200.0,105190.0,0.471099]
[1737724485479,0.9260358,105200.0,105190.0,0.56844629]
[1737724485681,0.92612205,105200.0,105190.0,0.56844629]
[1737724486018,0.90711105,105200.0,105190.0,0.74844629]
[1737724486187,0.83106705,105200.0,105190.0,0.74844629]
[1737724486988,0.79304505,105200.0,105190.0,0.74844629]
[1737724487191,0.73601205,105200.0,105190.0,0.74844629]
[1737724488192,0.3462034,105200.0,105190.0,0.76791716]
[1737724488391,0.00029842,105230.0,105190.0,0.76791716]
[1737724488392,0.00029842,105230.0,105220.0,0.470058]
[1737724488695,0.08399516,105260.0,105250.0,0.142517]
[1737724489073,0.08420458,105260.0,105250.0,0.142517]
[1737724491101,0.00020942,105260.0,105250.0,0.142517]
[1737724492386,0.00802366,105260.0,105250.0,0.142517]
[1737724492791,0.10537095,105260.0,105250.0,0.142517]
[1737724493001,0.18447095,105260.0,105250.0,0.142517]
[1737724493815,0.18476916,105260.0,105250.0,0.142517]
[1737724494796,0.1224,105250.0,105240.0,0.332555]
[1737724495043,0.22776605,105250.0,105240.0,0.14301863]
[1737724496294,0.37028305,105250.0,105240.0,0.00049263]
[1737724496833,0.52028305,105250.0,105240.0,0.00049263]
[1737724500323,0.52983921,105250.0,105240.0,0.00049263]
[1737724500517,0.1313,105220.0,105210.0,0.0009965]
[1737724500721,0.37120529,105220.0,105210.0,0.0009965]
[1737724501025,0.37920437,105220.0,105200.0,0.522783]
[1737724501237,0.09734729,105210.0,105200.0,0.380209]
[1737724502485,0.09734729,105210.0,105200.0,0.38025823]
[1737724504515,0.09746642,105210.0,105200.0,0.38025823]
[1737724505130,0.17326642,105210.0,105200.0,0.38025823]
[1737724505740,0.17326642,105210.0,105200.0,0.38040013]
[1737724510558,0.17330642,105210.0,105200.0,0.38040013]
[1737724512324,0.09750642,105210.0,105200.0,0.38040013]
[1737724512530,0.00015913,105210.0,105200.0,0.38040013]
[1737724514767,0.0080276,105210.0,105200.0,0.38040013]
[1737724514902,0.0080276,105210.0,105200.0,0.40340013]
[1737724515589,0.0080276,105210.0,105200.0,0.41040013]
[1737724515782,0.10537489,105210.0,105200.0,0.41040013]
[1737724515981,0.0080276,105210.0,105200.0,0.41040013]
[1737724517161,0.0080276,105210.0,105200.0,0.41984517]
[1737724517816,0.0080276,105210.0,105200.0,0.44284517]
[1737724520039,0.0080276,105210.0,105200.0,0.94284517]
[1737724521316,0.00604897,105210.0,105200.0,0.94284517]
[1737724521588,0.10339626,105210.0,105200.0,0.91040013]
[1737724521784,0.10339626,105210.0,105200.0,0.88040013]
[1737724521989,0.22529626,105210.0,105200.0,0.88040013]
[1737724523623,0.10339626,105210.0,105200.0,0.88040013]
[1737724524404,0.00604897,105210.0,105200.0,0.88040013]
[1737724530294,0.00604897,105210.0,105200.0,1.10250013]
[1737724530503,0.00604897,105210.0,105200.0,1.29044742]
[1737724531330,9.7e-07,105210.0,105200.0,1.29044742]
[1737724531592,3.2e-07,105210.0,105200.0,1.31044742]
[1737724531833,0.000298,105240.0,105230.0,0.142544]
[1737724532337,0.00441268,105240.0,105230.0,0.142544]
[1737724533339,0.00441268,105240.0,105230.0,0.14349411]
[1737724533600,8.9e-07,105260.0,105250.0,0.322517]
[1737724533865,0.00029862,105290.0,105250.0,0.322517]
[1737724533866,0.00029862,105290.0,105280.0,0.292477]
[1737724534187,0.00029862,105290.0,105280.0,0.38122752]
[1737724534439,0.00029862,105290.0,105280.0,0.48212976]
[1737724534638,0.00029862,105290.0,105280.0,0.292477]
[1737724534846,0.00078759,105290.0,105280.0,0.292477]
[1737724537650,0.00078759,105290.0,105280.0,0.345477]
[1737724539987,0.00078759,105290.0,105280.0,0.426877]
[1737724540203,0.00078759,105290.0,105280.0,0.52422429]
[1737724541271,0.00078759,105290.0,105280.0,0.53422429]
[1737724541908,0.00078759,105290.0,105280.0,0.553594]
[1737724543283,0.00078759,105290.0,105280.0,0.543594]
[1737724547185,0.00078759,105290.0,105280.0,0.547391]
[1737724549318,5.9e-07,105290.0,105280.0,0.6479534]
[1737724549891,5.9e-07,105290.0,105280.0,0.577391]
[1737724550659,0.12679604,105320.0,105310.0,0.142436]
[1737724550864,0.12694264,105320.0,105310.0,0.142436]
[1737724551954,0.0001466,105320.0,105310.0,0.14338544]
[1737724552154,0.0001466,105320.0,105310.0,0.14338537]
[1737724553201,0.0001466,105320.0,105310.0,0.142436]
[1737724554052,0.0001866,105320.0,105310.0,0.142436]
[1737724556251,0.0001866,105320.0,105310.0,0.15187629]
[1737724557051,0.0001866,105320.0,105310.0,0.30282566]
[1737724557250,0.0001866,105320.0,105310.0,0.30187629]
[1737724563858,0.0004846,105320.0,105310.0,0.30187629]
[1737724569733,0.0824846,105320.0,105310.0,0.30187629]
[1737724570159,0.0824846,105320.0,105310.0,0.292436]
[1737724570338,0.17983189,105320.0,105310.0,0.292436]
[1737724573437,0.17983189,105320.0,105310.0,0.142436]
[1737724576092,0.17983189,105320.0,105310.0,0.1425778]
[1737724577891,0.22523189,105320.0,105310.0,0.1425778]
[1737724578065,0.36765489,105320.0,105310.0,0.1425778]
[1737724578375,0.22523189,105320.0,105310.0,0.1425778]
[1737724579618,0.22523189,105320.0,105310.0,0.22628696]
[1737724579851,0.22523189,105320.0,105310.0,0.25628696]
[1737724580279,0.22523189,105320.0,105310.0,0.11385096]
[1737724580459,0.22523189,105320.0,105310.0,0.25628696]
[1737724581629,0.22523189,105320.0,105310.0,0.11385096]
[1737724581830,0.36765489,105320.0,105310.0,0.25628696]
[1737724582210,0.22523189,105320.0,105310.0,0.172436]
[1737724586560,0.36765489,105320.0,105310.0,0.03]
[1737724586703,0.22523189,105320.0,105310.0,0.172436]
[1737724587184,0.36765489,105320.0,105310.0,0.03]
[1737724587440,0.36765489,105320.0,105310.0,0.0301418]
[1737724588097,0.51765489,105320.0,105310.0,0.0301418]
[1737724590242,0.52732342,105320.0,105310.0,0.0301418]
[1737724596729,0.22523189,105320.0,105310.0,0.1725778]
[1737724600259,0.09783189,105320.0,105310.0,0.1725778]
[1737724601937,0.17703189,105320.0,105310.0,0.1725778]
[1737724602301,0.36885489,105320.0,105310.0,0.0301418]
[1737724608215,0.36885489,105320.0,105310.0,0.1725778]
[1737724608632,0.17703189,105320.0,105310.0,0.1725778]
[1737724609134,0.09783189,105320.0,105310.0,0.1725778]
[1737724610117,0.24025489,105320.0,105310.0,0.0301418]
[1737724610338,0.09783189,105320.0,105310.0,0.1725778]
[1737724611457,0.24025489,105320.0,105310.0,0.0301418]
[1737724611830,0.24025489,105320.0,105310.0,0.1425778]
[1737724612270,0.24025489,105320.0,105310.0,0.0001418]
[1737724612742,0.31555489,105320.0,105310.0,0.0001418]
[1737724614401,0.31555489,105320.0,105310.0,0.0001418]
[1737724623820,0.31555489,105320.0,105310.0,0.1425778]
[1737724624408,0.31555489,105320.0,105310.0,0.0001418]
[1737724629685,0.32485496,105320.0,105310.0,0.0001418]
[1737724631142,0.142436,105310.0,105290.0,0.5233219]
[1737724631403,0.09734729,105300.0,105290.0,0.4659984]
[1737724631793,0.09734729,105300.0,105290.0,0.4650085]
[1737724633623,0.09734729,105300.0,105290.0,0.4651503]
[1737724635296,0.09734729,105300.0,105290.0,0.3800228]
[1737724645458,0.0976455,105300.0,105290.0,0.3800228]
[1737724647667,0.2400955,105300.0,105290.0,0.0001418]
[1737724648087,0.3660955,105300.0,105290.0,0.0001418]
[1737724651367,0.37549315,105300.0,105290.0,0.0001418]
[1737724655199,0.52549315,105300.0,105290.0,0.0001418]
[1737724656038,0.53549315,105300.0,105290.0,0.0001418]
[1737724657063,2.03549315,105300.0,105290.0,0.0001418]
[1737724658316,2.15584044,105300.0,105290.0,0.0001418]
[1737724658533,0.190777,105280.0,105270.0,0.0009887]
[1737724658746,0.37178429,105280.0,105270.0,0.0009887]
[1737724658951,0.30249,105270.0,105260.0,0.0001419]
[1737724659153,0.47533729,105270.0,105260.0,0.0001419]
[1737724660001,0.47533729,105270.0,105260.0,0.00063087]
[1737724660266,0.52363729,105270.0,105260.0,0.00063087]
[1737724661566,0.54363729,105270.0,105260.0,0.00063087]
[1737724662214,2.12255316,105270.0,105260.0,0.00063087]
[1737724662478,2.13555316,105270.0,105260.0,0.00063087]
[1737724663787,2.05663729,105270.0,105260.0,0.00063087]
[1737724664215,2.07547989,105270.0,105260.0,0.00063087]
[1737724665695,2.07547989,105270.0,105260.0,8.7e-07]
[1737724665906,0.55547989,105270.0,105260.0,8.7e-07]
[1737724666330,0.56484727,105270.0,105260.0,8.7e-07]
[1737724666556,0.62123344,105270.0,105260.0,8.7e-07]
[1737724667817,0.56484727,105270.0,105260.0,8.7e-07]
[1737724668233,0.462204,105260.0,105250.0,0.48191807]
[1737724668443,0.55955129,105260.0,105250.0,0.48191807]
[1737724668657,0.55955129,105260.0,105250.0,0.48092587]
[1737724668864,0.53955129,105260.0,105250.0,0.48092587]
[1737724671432,0.63689858,105260.0,105250.0,0.48092587]
[1737724672416,0.53955129,105260.0,105250.0,0.45710336]
[1737724672631,0.59659129,105260.0,105250.0,0.24196484]
[1737724673050,0.59659129,105260.0,105250.0,0.22296284]
[1737724673280,0.59659129,105260.0,105250.0,0.14695484]
[1737724673493,0.59659129,105260.0,105250.0,0.10865584]
[1737724673707,0.53955129,105260.0,105250.0,0.10865584]
[1737724674119,0.54771129,105260.0,105250.0,0.10865584]
[1737724675817,2.04771129,105260.0,105250.0,0.10865584]
[1737724676344,2.06771129,105260.0,105250.0,0.10865584]
[1737724676542,2.04655129,105260.0,105250.0,0.10865584]
[1737724676774,2.05471129,105260.0,105250.0,0.10865584]
[1737724676978,2.05955129,105260.0,105250.0,0.10865584]
[1737724677406,2.06779129,105260.0,105250.0,0.10865584]
[1737724678089,2.04655129,105260.0,105250.0,0.10865584]
[1737724678293,2.05483129,105260.0,105250.0,0.10865584]
[1737724679291,2.03483129,105260.0,105250.0,0.10865584]
[1737724679582,1.97125129,105260.0,105250.0,0.10865584]
[1737724679794,0.09734729,105260.0,105250.0,0.25117284]
[1737724680010,0.09734729,105260.0,105250.0,0.37647284]
[1737724680187,0.09734729,105260.0,105250.0,0.37661484]
[1737724681085,0.09734729,105260.0,105250.0,0.10879784]
[1737724681086,0.23985129,105260.0,105250.0,0.10879784]
[1737724681264,0.38985129,105260.0,105250.0,0.10879784]
[1737724681501,0.39837129,105260.0,105250.0,0.10879784]
[1737724683013,0.4172957,105260.0,105250.0,0.10879784]
[1737724684852,0.24734729,105260.0,105250.0,0.25131484]
[1737724685065,0.38985129,105260.0,105250.0,0.10879784]
[1737724685289,0.24734729,105260.0,105250.0,0.25131484]
[1737724687468,0.09734729,105260.0,105250.0,0.25131484]
[1737724687670,0.09734729,105260.0,105250.0,0.28131484]
[1737724687872,0.24734729,105260.0,105250.0,0.28131484]
[1737724688528,0.38985129,105260.0,105250.0,0.13879784]
[1737724688711,0.24734729,105260.0,105250.0,0.28131484]
[1737724689975,0.24734729,105260.0,105250.0,0.13879784]
[1737724690172,0.24734729,105260.0,105250.0,0.28131484]
[1737724690369,0.24734729,105260.0,105250.0,0.13879784]
[1737724690370,0.38985129,105260.0,105250.0,0.13879784]
[1737724690815,0.38985129,105260.0,105250.0,0.10879784]
[1737724692164,0.3901495,105260.0,105250.0,0.10879784]
[1737724695388,0.39952464,105260.0,105250.0,0.10879784]
[1737724696224,0.40952464,105260.0,105250.0,0.10879784]
[1737724699433,0.40952464,105260.0,105250.0,0.09879784]
[1737724700573,0.39952464,105260.0,105250.0,0.09879784]
[1737724700752,0.40952464,105260.0,105250.0,0.09879784]
[1737724702402,0.53762464,105260.0,105250.0,0.09879784]
[1737724705453,0.52762464,105260.0,105250.0,0.09879784]
[1737724705663,0.39952464,105260.0,105250.0,0.09879784]
[1737724705869,0.40788464,105260.0,105250.0,0.09879784]
[1737724707343,0.39952464,105260.0,105250.0,0.09879784]
[1737724710101,1.89952464,105260.0,105250.0,0.09879784]
[1737724710668,0.39952464,105260.0,105250.0,0.09879784]
[1737724713184,0.40952464,105260.0,105250.0,0.09879784]
[1737724713802,0.39952464,105260.0,105250.0,0.09879784]
[1737724716243,0.53342464,105260.0,105250.0,0.09879784]
[1737724720229,0.59046464,105260.0,105250.0,0.09879784]
[1737724720433,0.53342464,105260.0,105250.0,0.09879784]
[1737724727039,0.39952464,105260.0,105250.0,0.09879784]
[1737724727238,0.39952464,105260.0,105250.0,0.18009784]
[1737724729543,0.39952464,105260.0,105250.0,0.09879784]
[1737724732110,0.40776464,105260.0,105250.0,0.09879784]
[1737724734906,0.40772464,105260.0,105250.0,0.09879784]
[1737724735876,0.40772464,105260.0,105250.0,0.09879784]
[1737724738345,0.2476455,105260.0,105250.0,0.24131484]
[1737724738548,0.2476455,105260.0,105250.0,0.31801484]
[1737724739421,0.2401495,105260.0,105250.0,0.31801484]
[1737724739622,0.0976455,105260.0,105250.0,0.31801484]
[1737724739794,0.0976455,105260.0,105250.0,0.17549784]
[1737724740002,0.0976455,105260.0,105250.0,0.31801484]
[1737724740771,0.2401495,105260.0,105250.0,0.31801484]
[1737724741087,0.0976455,105260.0,105250.0,0.31801484]
[1737724742101,0.2401495,105260.0,105250.0,0.31801484]
[1737724742681,0.2401495,105260.0,105250.0,0.17549784]
[1737724742913,0.2401495,105260.0,105250.0,0.31801484]
[1737724743314,0.2401495,105260.0,105250.0,0.17549784]
[1737724743932,0.3222495,105260.0,105250.0,0.09879784]
[1737724744335,2.0189495,105260.0,105250.0,0.09879784]
[1737724745080,0.5189495,105260.0,105250.0,0.09879784]
[1737724750361,0.5289495,105260.0,105250.0,0.09879784]
[1737724754256,0.5612193,105260.0,105250.0,0.09829784]
[1737724754589,0.5812193,105260.0,105250.0,0.06903278]
[1737724757922,0.5612193,105260.0,105250.0,0.06903278]
[1737724759444,0.5612193,105260.0,105250.0,7.8e-07]
[1737724759653,0.5698193,105260.0,105250.0,7.8e-07]
[1737724759803,0.72420659,105260.0,105250.0,7.8e-07]
[1737724760013,0.221158,105220.0,105210.0,0.0011377]
[1737724760224,0.23990529,105220.0,105210.0,0.0011377]
[1737724760427,0.23990529,105220.0,105210.0,0.000142]
[1737724760887,0.38990529,105220.0,105210.0,0.000142]
[1737724761257,0.38990529,105220.0,105210.0,0.00019123]
[1737724762730,0.39990529,105220.0,105210.0,0.00019123]
[1737724762931,0.47660529,105220.0,105210.0,0.00019123]
[1737724763155,0.48960529,105220.0,105210.0,0.00019123]
[1737724763366,0.50960529,105220.0,105210.0,0.00019123]
[1737724763578,0.55490529,105220.0,105210.0,0.00019123]
[1737724763797,0.2966,105210.0,105190.0,0.0011269]
[1737724764001,0.195599,105190.0,105180.0,0.0852695]
[1737724764211,0.44294629,105190.0,105180.0,0.08531873]
[1737724764449,0.44294629,105190.0,105180.0,0.08630423]
[1737724764653,0.43294629,105190.0,105180.0,0.08531873]
[1737724764863,0.51394629,105190.0,105180.0,0.08531873]
[1737724765065,0.51394629,105190.0,105180.0,0.00019123]
[1737724765272,0.51394629,105190.0,105180.0,2.3e-07]
[1737724765273,0.56114629,105190.0,105180.0,2.3e-07]
[1737724765510,0.6357187,105190.0,105180.0,2.3e-07]
[1737724766129,0.315612,105180.0,105170.0,2.3e-07]
[1737724766354,0.5801017,105180.0,105170.0,2.3e-07]
[1737724767226,0.6974321,105180.0,105170.0,2.3e-07]
[1737724767481,0.66211276,105180.0,105170.0,2.3e-07]
[1737724767680,0.5801017,105180.0,105170.0,2.3e-07]
[1737724768340,0.54255929,105180.0,105170.0,2.3e-07]
[1737724768733,0.55135929,105180.0,105170.0,2.3e-07]
[1737724768937,0.54255929,105180.0,105170.0,2.3e-07]
[1737724769149,0.55135929,105180.0,105170.0,2.3e-07]
[1737724770619,0.57135929,105180.0,105170.0,2.3e-07]
[1737724771293,0.55135929,105180.0,105170.0,2.3e-07]
[1737724771491,0.52554367,105180.0,105170.0,2.3e-07]
[1737724771702,0.54554367,105180.0,105170.0,2.3e-07]
[1737724771916,0.54550367,105180.0,105170.0,2.3e-07]
[1737724772121,0.51674367,105180.0,105170.0,2.3e-07]
[1737724772348,0.52550367,105180.0,105170.0,2.3e-07]
[1737724774985,0.54464835,105180.0,105170.0,2.3e-07]
[1737724775849,0.60167835,105180.0,105170.0,2.3e-07]
[1737724776050,0.60171835,105180.0,105170.0,2.3e-07]
[1737724776291,0.60201677,105180.0,105170.0,2.3e-07]
[1737724777300,0.60401677,105180.0,105170.0,2.3e-07]
[1737724779421,0.59521677,105180.0,105170.0,2.3e-07]
[1737724779641,0.52390677,105180.0,105170.0,2.3e-07]
[1737724779834,0.54390677,105180.0,105170.0,2.3e-07]
[1737724780076,0.52390677,105180.0,105170.0,2.3e-07]
[1737724780297,0.52518677,105180.0,105170.0,2.3e-07]
[1737724780509,0.55394677,105180.0,105170.0,2.3e-07]
[1737724780728,0.41558677,105180.0,105170.0,2.3e-07]
[1737724780951,0.40434677,105180.0,105170.0,2.3e-07]
[1737724781412,0.39558677,105180.0,105170.0,2.3e-07]
[1737724781654,0.40434677,105180.0,105170.0,2.3e-07]
[1737724782051,0.40234677,105180.0,105170.0,2.3e-07]
[1737724782475,0.39358677,105180.0,105170.0,2.3e-07]
[1737724782714,0.40230677,105180.0,105170.0,2.3e-07]
[1737724784317,0.40226677,105180.0,105170.0,2.3e-07]
[1737724785080,0.142626,105170.0,105160.0,0.0806175]
[1737724785290,0.23997329,105170.0,105160.0,0.0806175]
[1737724786305,0.292639,105160.0,105150.0,0.0474336]
[1737724786445,0.38998629,105160.0,105150.0,0.0474336]
[1737724786650,0.38998629,105160.0,105150.0,0.0464419]
[1737724787298,1.88998629,105160.0,105150.0,0.0464419]
[1737724787846,0.39862629,105160.0,105150.0,0.0464419]
[1737724788057,0.39862629,105160.0,105150.0,0.1255419]
[1737724792224,0.39862629,105160.0,105150.0,0.0001419]
[1737724794837,0.379666,105140.0,105130.0,1.6e-07]
[1737724795056,0.142694,105120.0,105110.0,0.02027398]
[1737724795265,0.24004129,105120.0,105110.0,0.02027398]
[1737724795676,1.74004129,105120.0,105110.0,0.02027398]
[1737724795888,1.74896129,105120.0,105110.0,0.02027398]
[1737724796304,1.75896129,105120.0,105110.0,0.02076676]
[1737724796507,1.74896129,105120.0,105110.0,0.02076676]
[1737724798335,0.24896129,105120.0,105110.0,0.02076676]
[1737724798802,0.39896129,105120.0,105110.0,0.02076676]
[1737724799355,0.39004129,105120.0,105110.0,0.02076676]
[1737724799564,0.39004129,105120.0,105110.0,0.06616676]
[1737724799776,0.39004129,105120.0,105110.0,0.14416676]
[1737724800384,0.24734729,105120.0,105110.0,0.28687376]
[1737724800588,0.39004129,105120.0,105110.0,0.14416676]
[1737724801982,0.09734729,105120.0,105110.0,0.28687376]
[1737724802959,0.24004129,105120.0,105110.0,0.28687376]
[1737724803156,0.24004129,105120.0,105110.0,0.14416676]
[1737724805175,0.09734729,105120.0,105110.0,0.28687376]
[1737724807670,0.682257,105150.0,105140.0,0.142666]
[1737724807671,0.482878,105150.0,105140.0,0.142666]
[1737724807869,0.58022429,105150.0,105130.0,0.409397]
[1737724808075,0.24001329,105140.0,105130.0,0.266726]
[1737724808628,0.24001329,105140.0,105130.0,0.0765]
[1737724809034,0.62046329,105140.0,105120.0,0.3339149]
[1737724809227,0.62046329,105140.0,105120.0,0.5241659]
[1737724809982,0.24002729,105130.0,105120.0,0.0009869]
[1737724810202,0.2403255,105130.0,105120.0,0.0009869]
[1737724810406,0.2403255,105130.0,105120.0,0.142694]
[1737724811399,0.2403255,105130.0,105110.0,0.52809276]
[1737724811762,0.2403255,105130.0,105110.0,0.67078876]
[1737724811763,0.4305695,105130.0,105110.0,0.67078876]
[1737724811958,0.6208175,105130.0,105110.0,0.48052476]
[1737724812168,0.4305695,105130.0,105110.0,0.67079076]
[1737724812377,0.6208205,105130.0,105110.0,0.67079076]
[1737724812586,0.6208205,105130.0,105110.0,0.86105976]
[1737724813014,0.24004129,105120.0,105110.0,0.33782876]
[1737724813414,0.09734729,105120.0,105110.0,0.33782876]
[1737724822924,0.0970952,105120.0,105110.0,0.33782876]
[1737724832071,0.10537761,105120.0,105110.0,0.33782876]
[1737724836653,0.10537761,105120.0,105110.0,0.29242876]
[1737724836855,0.10537761,105120.0,105110.0,0.21102876]
[1737724844321,0.32517161,105120.0,105110.0,0.21102876]
[1737724844484,0.18247761,105120.0,105110.0,0.21102876]
[1737724845358,0.18277582,105120.0,105110.0,0.21102876]
[1737724847025,0.10567582,105120.0,105110.0,0.21102876]
[1737724854056,0.10567582,105120.0,105110.0,0.22060063]
[1737724863743,0.00858062,105120.0,105110.0,0.32570063]
[1737724864434,0.00858062,105120.0,105110.0,0.30270063]
[1737724866237,0.10592791,105120.0,105110.0,0.21102876]
[1737724868659,0.00858062,105120.0,105110.0,0.21102876]
[1737724868865,0.00858062,105120.0,105110.0,0.31422876]
[1737724869845,0.00858062,105120.0,105110.0,0.46422876]
[1737724879874,0.00858062,105120.0,105110.0,0.38402876]
[1737724886964,0.10592791,105120.0,105110.0,0.36102876]
[1737724896562,0.18582791,105120.0,105110.0,0.36102876]
[1737724897042,0.10592791,105120.0,105110.0,0.36102876]
[1737724897248,0.00858062,105120.0,105110.0,0.38402876]
[1737724898412,0.10592791,105120.0,105110.0,0.36102876]
[1737724898854,0.18282791,105120.0,105110.0,0.21102876]
[1737724899059,0.23112791,105120.0,105110.0,0.21102876]
[1737724902415,0.37382191,105120.0,105110.0,0.02076676]
[1737724904589,0.52382191,105120.0,105110.0,0.02076676]
[1737724908172,2.3807722,105120.0,105110.0,0.02076676]
[1737724911223,2.39986308,105120.0,105110.0,0.02076676]
[1737724912152,0.268307,105110.0,105100.0,0.0891307]
[1737724912365,0.36565429,105110.0,105100.0,0.08927833]
[1737724912558,0.37253477,105110.0,105100.0,0.08828963]
[1737724912802,0.53077477,105110.0,105100.0,0.08828963]
[1737724913801,0.52253477,105110.0,105100.0,0.08828963]
[1737724916306,0.52250717,105110.0,105100.0,0.08828963]
[1737724927940,0.52280538,105110.0,105100.0,0.08828963]
[1737724929956,0.53100538,105110.0,105100.0,0.08328963]
[1737724930333,0.52280538,105110.0,105100.0,0.08328963]
[1737724930470,0.53100538,105110.0,105100.0,0.08328963]
[1737724933466,0.53100538,105110.0,105100.0,0.07828963]
[1737724937149,0.58400538,105110.0,105100.0,0.07828963]
[1737724938436,1.45860538,105110.0,105100.0,0.07828963]
[1737724939340,2.95860538,105110.0,105100.0,0.07828963]
[1737724939544,2.94860538,105110.0,105100.0,0.07828963]
[1737724940333,2.95860538,105110.0,105100.0,0.07828963]
[1737724940672,2.94860538,105110.0,105100.0,0.07828963]
[1737724940978,2.92560538,105110.0,105100.0,0.07828963]
[1737724941099,2.93560538,105110.0,105100.0,0.07828963]
[1737724941515,2.92560538,105110.0,105100.0,0.07828963]
[1737724943394,2.92565536,105110.0,105100.0,0.07828963]
[1737724945604,1.42565536,105110.0,105100.0,0.07828963]
[1737724946020,1.45865536,105110.0,105100.0,0.07828963]
[1737724946441,1.55600265,105110.0,105100.0,0.07828963]
[1737724946650,1.45865536,105110.0,105100.0,0.07828963]
[1737724949636,1.51568536,105110.0,105100.0,0.07828963]
[1737724950194,1.45865536,105110.0,105100.0,0.07828963]
[1737724953500,1.43865536,105110.0,105100.0,0.07828963]
[1737724953725,1.42865536,105110.0,105100.0,0.00217363]
[1737724953908,1.42865536,105110.0,105100.0,6.3e-07]
[1737724955340,0.376048,105080.0,105070.0,0.0002021]
[1737724955538,0.48023501,105080.0,105070.0,0.00025118]
[1737724956617,0.4883793,105080.0,105070.0,0.00025118]
[1737724956971,0.4050793,105080.0,105070.0,0.00025118]
[1737724958306,0.3968793,105080.0,105070.0,0.08345118]
[1737724959119,0.39693573,105080.0,105070.0,0.08345118]
[1737724959320,0.24693573,105080.0,105070.0,0.27601218]
[1737724961619,0.2468793,105080.0,105070.0,0.13325118]
[1737724961832,0.2468793,105080.0,105070.0,0.27601218]
[1737724962117,0.1041313,105080.0,105070.0,0.27601218]
[1737724962322,0.10418773,105080.0,105070.0,0.27601218]
[1737724968297,0.13253087,105080.0,105070.0,0.27601218]
[1737724969486,0.27527887,105080.0,105070.0,0.27601218]
[1737724969658,0.13253087,105080.0,105070.0,0.27601218]
[1737724969890,0.27527887,105080.0,105070.0,0.27601218]
[1737724970095,0.13253087,105080.0,105070.0,0.27601218]
[1737724970520,0.27527887,105080.0,105070.0,0.27601218]
[1737724970821,0.13253087,105080.0,105070.0,0.27601218]
[1737724972060,0.10418773,105080.0,105070.0,0.27601218]
[1737724972929,0.24693573,105080.0,105070.0,0.05005118]
[1737724973125,0.39693573,105080.0,105070.0,0.00025118]
[1737724973275,0.3970816,105080.0,105070.0,0.00025118]
[1737724973478,1.8970816,105080.0,105070.0,0.00025118]
[1737724973683,2.0259816,105080.0,105070.0,0.00025118]
[1737724975719,2.0343016,105080.0,105070.0,0.00025118]
[1737724976973,2.03435422,105080.0,105070.0,0.00025118]
[1737724977794,2.04365992,105080.0,105070.0,0.00025118]
[1737724978337,0.40643992,105080.0,105070.0,0.00025118]
[1737724978548,0.52053422,105080.0,105070.0,0.00025118]
[1737724978961,2.02053422,105080.0,105070.0,0.00025118]
[1737724979139,0.39713422,105080.0,105070.0,0.00025118]
[1737724980046,0.47823422,105080.0,105070.0,0.00025118]
[1737724980463,1.97823422,105080.0,105070.0,0.00025118]
[1737724981277,2.02403422,105080.0,105070.0,0.00025118]
[1737724986581,0.57721703,105080.0,105070.0,0.00025118]
[1737724987053,0.57721703,105080.0,105070.0,1.8e-07]
[1737724987248,0.63424703,105080.0,105070.0,1.8e-07]
[1737724987453,0.60424703,105080.0,105070.0,1.8e-07]
[1737724988145,0.61424703,105080.0,105070.0,1.8e-07]
[1737724989201,0.52421703,105080.0,105070.0,1.8e-07]
[1737724990261,0.61424703,105080.0,105070.0,1.8e-07]
[1737724990471,0.60424703,105080.0,105070.0,1.8e-07]
[1737724990670,0.58124703,105080.0,105070.0,1.8e-07]
[1737724990879,0.60424703,105080.0,105070.0,1.8e-07]
[1737724991091,0.61424703,105080.0,105070.0,1.8e-07]
[1737724991906,1.48884703,105080.0,105070.0,1.8e-07]
[1737724996011,1.47884703,105080.0,105070.0,1.8e-07]
[1737724997261,1.48884703,105080.0,105070.0,1.8e-07]
[1737724997484,1.47884703,105080.0,105070.0,1.8e-07]
[1737724997899,0.70159432,105080.0,105070.0,1.8e-07]
[1737724998104,0.61424703,105080.0,105070.0,1.8e-07]
[1737724998309,0.61805503,105080.0,105070.0,1.8e-07]
[1737724998513,0.60805503,105080.0,105070.0,1.8e-07]
[1737724999682,0.379791,105070.0,105060.0,0.0001421]
[1737724999829,0.58213829,105070.0,105060.0,0.00029]
[1737725000034,0.5880218,105070.0,105060.0,0.00029]
[1737725002198,0.6357218,105070.0,105060.0,0.00029]
[1737725002991,0.6439618,105070.0,105060.0,0.00029]
[1737725003228,0.6339618,105070.0,105060.0,0.00029]
[1737725003677,0.6346009,105070.0,105060.0,0.00029]
[1737725003881,1.5092009,105070.0,105060.0,0.00029]
[1737725004085,1.5192009,105070.0,105060.0,0.00029]
[1737725004321,1.3814709,105070.0,105060.0,0.00029]
[1737725005105,1.3814709,105070.0,105060.0,0.00011382]
[1737725006403,1.40046944,105070.0,105060.0,0.00011382]
[1737725006845,1.41020239,105070.0,105060.0,0.00011382]
[1737725007171,1.26744139,105070.0,105040.0,0.07387954]
[1737725007470,0.39013629,105050.0,105040.0,0.07392864]
[1737725007925,0.39051968,105050.0,105040.0,0.07392864]
[1737725009976,0.39610396,105050.0,105040.0,0.07392864]
[1737725010176,0.39610396,105050.0,105040.0,0.07384013]
[1737725012070,1.89610396,105050.0,105040.0,0.07384013]
[1737725012286,1.89610396,105050.0,105040.0,4.91e-05]